lending/lending_fUSD_20240401
["ID","MTS","AMOUNT","RATE_DAILY","PERIOD"]
[321233270,1712004644088,-167.97634746,0.00058345,14]
[321233271,1712004644097,-522.31725361,0.00058356,31]
[321233272,1712004644108,-150.0,0.00058356,14]
[321233273,1712004644118,-275.87895534,0.00058356,120]
[321233274,1712004644127,-5896.0,0.00058356,120]
[321233275,1712004644137,-7900.54,0.00058356,120]
[321233276,1712004644147,-1088.97,0.00058356,120]
[321233277,1712004644157,-21137.28,0.00058356,120]
[321233278,1712004644166,-500.0,0.00058356,120]
[321233279,1712004644175,-945.04091171,0.00058448,14]
[321233280,1712004644185,-168.69747162,0.00058466,59]
[321233281,1712004644194,-150.0,0.00058476,14]
[321233282,1712004644203,-150.0,0.00058514,14]
[321233283,1712004644213,-150.0,0.00058549,14]
[321233284,1712004644222,-150.0,0.0005857,14]
[321233285,1712004644231,-604.0,0.00058592,7]
[321233286,1712004644240,-150.0,0.00058617,14]
[321233287,1712004644250,-185.27337934,0.0005862,7]
[321233288,1712004644259,-150.0,0.00058629,120]
[321233289,1712004644268,-5896.0,0.0005863,120]
[321233290,1712004644278,-7900.54,0.0005863,120]
[321233291,1712004644288,-1088.97,0.0005863,120]
[321233292,1712004644297,-21137.28,0.0005863,120]
[321233293,1712004644333,-500.0,0.0005863,120]
[321233294,1712004644343,-150.0,0.00058639,14]
[321233295,1712004644353,-150.0,0.00058653,14]
[321233296,1712004644364,-150.0,0.0005867,14]
[321233297,1712004644373,-434.62,0.00058703,30]
[321233298,1712004644386,-165.33,0.00058714,120]
[321233299,1712004644396,-15000.0,0.0005874,16]
[321233300,1712004644405,-150.0,0.0005874,14]
[321233301,1712004644415,-150.0,0.00058753,14]
[321233302,1712004644425,-150.0,0.00058791,14]
[321233303,1712004644435,-150.0,0.00058842,14]
[321233304,1712004644444,-200.0,0.00058847,15]
[321233305,1712004644454,-151.0,0.00058879,120]
[321233306,1712004644464,-14894.23416458,0.0005888,7]
[321233307,1712004644473,-151.0,0.0005888,120]
[321233308,1712004644483,-352.315462,0.0005888,120]
[321233309,1712004644492,-352.315462,0.0005888,120]
[321233310,1712004644502,-150.0,0.00058888,14]
[321233311,1712004644511,-7000.0,0.000589,21]
[321233312,1712004644521,-1000.0,0.000589,7]
[321233313,1712004644530,-5896.0,0.00058904,120]
[321233314,1712004644540,-7900.54,0.00058904,120]
[321233315,1712004644549,-1088.97,0.00058904,120]
[321233316,1712004644559,-21137.28,0.00058904,120]
[321233317,1712004644568,-500.0,0.00058904,120]
[321233318,1712004644577,-153.75644146,0.00058904,120]
[321233319,1712004644587,-209.0,0.0005891,30]
[321233320,1712004644596,-150.0,0.00058927,14]
[321233321,1712004644608,-168.69747162,0.00058944,59]
[321233322,1712004644617,-150.0,0.00058959,14]
[321233323,1712004644626,-7896.5233107,0.00058964,2]
[321233324,1712004644636,-1429.25000458,0.00058969,37]
[321233325,1712004644645,-200.0,0.0005899,90]
[321233326,1712004644654,-200.0,0.0005899,90]
[321233327,1712004644663,-163.60438314,0.00058997,2]
[321233328,1712004644672,-150.0,0.00058999,120]
[321233329,1712004644682,-966448.17032653,0.00059,120]
[321233330,1712004644692,-157373.81950949,0.00059,120]
[321233331,1712004644702,-236666.75434319,0.00059,120]
[321233332,1712004644712,-25000.0,0.00059,2]
[321233333,1712004644721,-478.28,0.00059,120]
[321233334,1712004644731,-400.8,0.00059,14]
[321233335,1712004644740,-684.37,0.00059,30]
[321233336,1712004644750,-2500.01,0.00059,120]
[321233337,1712004644759,-153.592751,0.00059,120]
[321233338,1712004644769,-151.0,0.00059,120]
[321233339,1712004644778,-151.0,0.00059,120]
[321233340,1712004644790,-352.315462,0.00059,120]
[321233341,1712004644799,-352.315462,0.00059,120]
[321233342,1712004644809,-352.315462,0.00059,120]
[321233343,1712004644818,-352.315469,0.00059,120]
[321233344,1712004644827,-150.0,0.0005903,14]
[321233345,1712004644836,-150.0,0.00059073,14]
[321233346,1712004644846,-234.64631894,0.00059082,120]
[321233347,1712004644856,-150.0,0.00059095,14]
[321233348,1712004644865,-804.85,0.000591,30]
[321233349,1712004644874,-1436.0,0.000591,7]
[321233350,1712004644883,-1000.0,0.000591,7]
[321233351,1712004644892,-150.0,0.00059107,14]
[321233352,1712004644902,-150.0,0.00059121,14]
[321233353,1712004644911,-150.0,0.00059124,14]
[321233354,1712004644920,-150.0,0.00059127,14]
[321233355,1712004644929,-300.0,0.00059128,14]
[321233356,1712004644938,-5022.6564,0.00059166,30]
[321233357,1712004644948,-510.05943121,0.00059167,2]
[321233358,1712004644957,-207.42342528,0.00059167,120]
[321233359,1712004644967,-649.2313814,0.00059167,2]
[321233360,1712004644976,-5896.0,0.00059178,120]
[321233361,1712004644986,-7900.54,0.00059178,120]
[321233362,1712004644995,-1088.97,0.00059178,120]
[321233363,1712004645006,-21137.28,0.00059178,120]
[321233364,1712004645014,-500.0,0.00059178,120]
[321233365,1712004645024,-161.317624,0.00059191,30]
[321233366,1712004645033,-224.605395,0.00059191,30]
[321233367,1712004645042,-261.76679,0.00059191,30]
[321233368,1712004645052,-153.928821,0.00059191,30]
[321233369,1712004645061,-1211.0,0.000592,4]
[321233370,1712004645071,-1000.0,0.000592,7]
[321233371,1712004645080,-152.166961,0.00059235,14]
[321233372,1712004645089,-1500.0,0.00059266,14]
[321233373,1712004645098,-150.0,0.00059268,14]
[321233374,1712004645109,-1231.83935218,0.00059295,120]
[321233375,1712004645118,-150.0,0.00059349,14]
[321233376,1712004645127,-150.0,0.00059364,14]
[321233377,1712004645136,-6000.00000001,0.00059371,2]
[321233378,1712004645146,-150.0,0.00059386,14]
[321233379,1712004645155,-168.69747162,0.00059422,60]
[321233380,1712004645165,-150.0,0.00059432,14]
[321233381,1712004645174,-5896.0,0.00059452,120]
[321233382,1712004645183,-7900.54,0.00059452,120]
[321233383,1712004645193,-1088.97,0.00059452,120]
[321233384,1712004645202,-21137.28,0.00059452,120]
[321233385,1712004645211,-500.0,0.00059452,120]
[321233386,1712004645220,-304.29307054,0.00059495,14]
[321233387,1712004645230,-150.0,0.00059508,14]
[321233388,1712004645240,-166.99392,0.00059577,4]
[321233389,1712004645250,-155.2939633,0.00059595,120]
[321233390,1712004645260,-809.44,0.00059613,120]
[321233391,1712004645269,-150.0,0.00059654,14]
[321233392,1712004645280,-151.70009463,0.00059662,120]
[321233393,1712004645290,-150.0,0.00059666,14]
[321233394,1712004645299,-163.60438314,0.00059677,2]
[321233395,1712004645309,-1401.79529549,0.00059678,4]
[321233396,1712004645319,-1063.97060893,0.00059678,4]
[321233397,1712004645328,-7746.07556118,0.00059678,4]
[321233398,1712004645338,-435.60504467,0.00059678,4]
[321233399,1712004645347,-155.45988946,0.00059678,4]
[321233400,1712004645358,-281.76622949,0.00059679,4]
[321233401,1712004645368,-185.46367257,0.00059679,2]
[321233402,1712004645379,-361.96362888,0.00059679,4]
[321233403,1712004645388,-1015.77749665,0.00059679,120]
[321233404,1712004645397,-237.50769212,0.00059679,120]
[321233405,1712004645406,-22948.7066957,0.00059679,120]
[321233406,1712004645415,-1000.0,0.00059679,2]
[321233407,1712004645423,-1000.0,0.00059679,2]
[321233408,1712004645432,-1000.0,0.00059679,2]
[321233409,1712004645440,-604.62020788,0.00059679,2]
[321233410,1712004645450,-161.41627732,0.00059679,120]
[321233411,1712004645459,-1834483.57456737,0.0005968,2]
[321233412,1712004645469,-12785.97664227,0.0005968,2]
[321233413,1712004645479,-5896.0,0.00059726,120]
[321233414,1712004645488,-7900.54,0.00059726,120]
[321233415,1712004645498,-1088.97,0.00059726,120]
[321233416,1712004645507,-21137.28,0.00059726,120]
[321233417,1712004645516,-500.0,0.00059726,120]
[321233418,1712004645526,-500.0,0.0005975,90]
[321233419,1712004645535,-500.0,0.0005975,90]
[321233420,1712004645545,-500.0,0.0005976,2]
[321233421,1712004645554,-410.0528,0.0005976,2]
[321233422,1712004645564,-1000.0,0.0005976,2]
[321233423,1712004645573,-1000.0,0.0005976,2]
[321233424,1712004645594,-1000.0,0.0005976,2]
[321233425,1712004645605,-1000.0,0.0005976,2]
[321233426,1712004645614,-1000.0,0.0005976,2]
[321233427,1712004645623,-1000.0,0.0005976,2]
[321233428,1712004645632,-1000.0,0.0005976,2]
[321233429,1712004645640,-1000.0,0.0005976,2]
[321233430,1712004645649,-1000.0,0.0005976,2]
[321233431,1712004645658,-1000.0,0.0005976,2]
[321233432,1712004645667,-1000.0,0.0005976,2]
[321233433,1712004645676,-1000.0,0.0005976,2]
[321233434,1712004645686,-1000.0,0.0005976,2]
[321233435,1712004645695,-1000.0,0.0005976,2]
[321233436,1712004645704,-1000.0,0.0005976,2]
[321233437,1712004645714,-1000.0,0.0005976,2]
[321233438,1712004645723,-1000.0,0.0005976,2]
[321233439,1712004645733,-1000.0,0.0005976,2]
[321233440,1712004645742,-1000.0,0.0005976,2]
[321233441,1712004645751,-1000.0,0.0005976,2]
[321233442,1712004645760,-1000.0,0.0005976,2]
[321233443,1712004645769,-1000.0,0.0005976,2]
[321233444,1712004645779,-1071.8497,0.0005976,2]
[321233445,1712004645788,-500.0,0.0005976,2]
[321233446,1712004645798,-500.0,0.0005976,2]
[321233447,1712004645808,-500.0,0.0005976,2]
[321233448,1712004645818,-500.0,0.0005976,2]
[321233449,1712004645827,-500.0,0.0005976,2]
[321233450,1712004645838,-500.0,0.0005976,2]
[321233451,1712004645848,-500.0,0.0005976,2]
[321233452,1712004645858,-500.0,0.0005976,2]
[321233453,1712004645868,-500.0,0.0005976,2]
[321233454,1712004645878,-565.1923,0.0005976,2]
[321233455,1712004645887,-15000.0,0.0005978,21]
[321233456,1712004645898,-4704.44,0.00059798,4]
[321233457,1712004645907,-200.0,0.00059799,120]
[321233458,1712004645917,-1400.0,0.000598,21]
[321233459,1712004645927,-152.46,0.000598,9]
[321233460,1712004645937,-152.46,0.000598,9]
[321233461,1712004645946,-152.46,0.000598,9]
[321233462,1712004645956,-152.46,0.000598,9]
[321233463,1712004645966,-152.46,0.000598,9]
[321233464,1712004645976,-152.46,0.000598,9]
[321233465,1712004645985,-152.46,0.000598,9]
[321233466,1712004645995,-152.46,0.000598,9]
[321233467,1712004646005,-152.46,0.000598,9]
[321233468,1712004646015,-152.46,0.000598,9]
[321233469,1712004646029,-152.46,0.000598,9]
[321233470,1712004646040,-152.46,0.000598,9]
[321233471,1712004646050,-156.58100851,0.00059805,120]
[321233472,1712004646059,-163.60438314,0.00059897,2]
[321233473,1712004646069,-470169.71467224,0.000599,30]
[321233474,1712004646079,-500.0,0.000599,7]
[321233475,1712004646089,-500.0,0.000599,7]
[321233476,1712004646099,-500.0,0.000599,7]
[321233477,1712004646110,-506.13,0.000599,7]
[321233478,1712004646120,-500.0,0.000599,7]
[321233479,1712004646131,-500.0,0.000599,7]
[321233480,1712004646140,-500.0,0.000599,7]
[321233481,1712004646149,-500.0,0.000599,7]
[321233482,1712004646159,-500.0,0.000599,7]
[321233483,1712004646169,-500.0,0.000599,7]
[321233484,1712004646179,-500.0,0.000599,7]
[321233485,1712004646188,-500.0,0.000599,7]
[321233486,1712004646198,-500.0,0.000599,7]
[321233487,1712004646207,-500.0,0.000599,7]
[321233488,1712004646217,-500.0,0.000599,7]
[321233489,1712004646227,-500.0,0.000599,7]
[321233490,1712004646238,-500.0,0.000599,7]
[321233491,1712004646247,-500.0,0.000599,7]
[321233492,1712004646257,-500.0,0.000599,7]
[321233493,1712004646266,-500.0,0.000599,7]
[321233494,1712004646277,-500.0,0.000599,7]
[321233495,1712004646292,-518.93,0.000599,7]
[321233496,1712004646302,-400.8,0.000599,14]
[321233497,1712004646312,-684.37,0.000599,30]
[321233498,1712004646322,-500.0,0.000599,7]
[321233499,1712004646332,-500.0,0.000599,7]
[321233500,1712004646342,-500.0,0.000599,7]
[321233501,1712004646351,-500.0,0.000599,7]
[321233502,1712004646364,-500.0,0.000599,7]
[321233503,1712004646374,-500.0,0.000599,7]
[321233504,1712004646386,-500.0,0.000599,7]
[321233505,1712004646396,-500.0,0.000599,7]
[321233506,1712004646406,-500.0,0.000599,7]
[321233507,1712004646416,-500.0,0.000599,7]
[321233508,1712004646426,-500.0,0.000599,7]
[321233509,1712004646436,-500.0,0.000599,7]
[321233510,1712004646446,-500.0,0.000599,7]
[321233511,1712004646456,-500.0,0.000599,7]
[321233512,1712004646465,-500.0,0.000599,7]
[321233513,1712004646475,-500.0,0.000599,7]
[321233514,1712004646485,-500.0,0.000599,7]
[321233515,1712004646495,-500.0,0.000599,7]
[321233516,1712004646505,-500.0,0.000599,7]
[321233517,1712004646515,-500.0,0.000599,7]
[321233518,1712004646524,-500.0,0.000599,7]
[321233519,1712004646534,-500.0,0.000599,7]
[321233520,1712004646544,-500.0,0.000599,7]
[321233521,1712004646554,-500.0,0.000599,7]
[321233522,1712004646567,-500.0,0.000599,7]
[321233523,1712004646577,-500.0,0.000599,7]
[321233524,1712004646587,-500.0,0.000599,7]
[321233525,1712004646597,-500.0,0.000599,7]
[321233526,1712004646606,-500.0,0.000599,7]
[321233527,1712004646617,-500.0,0.000599,7]
[321233528,1712004646626,-500.0,0.000599,7]
[321233529,1712004646637,-500.0,0.000599,7]
[321233530,1712004646647,-500.0,0.000599,7]
[321233531,1712004646657,-500.0,0.000599,7]
[321233532,1712004646667,-500.0,0.000599,7]
[321233533,1712004646677,-500.0,0.000599,7]
[321233534,1712004646687,-500.0,0.000599,7]
[321233535,1712004646697,-500.0,0.000599,7]
[321233536,1712004646707,-500.0,0.000599,7]
[321233537,1712004646716,-500.0,0.000599,7]
[321233538,1712004646725,-500.0,0.000599,7]
[321233539,1712004646735,-500.0,0.000599,7]
[321233540,1712004646744,-500.0,0.000599,7]
[321233541,1712004646754,-500.0,0.000599,7]
[321233542,1712004646764,-500.0,0.000599,7]
[321233543,1712004646774,-500.0,0.000599,7]
[321233544,1712004646784,-500.0,0.000599,7]
[321233545,1712004646794,-500.0,0.000599,7]
[321233546,1712004646804,-500.0,0.000599,7]
[321233547,1712004646814,-500.0,0.000599,7]
[321233548,1712004646823,-500.0,0.000599,7]
[321233549,1712004646833,-500.0,0.000599,7]
[321233550,1712004646845,-500.0,0.000599,7]
[321233551,1712004646856,-500.0,0.000599,7]
[321233552,1712004646866,-500.0,0.000599,7]
[321233553,1712004646876,-500.0,0.000599,7]
[321233554,1712004646885,-500.0,0.000599,7]
[321233555,1712004646895,-500.0,0.000599,7]
[321233556,1712004646905,-500.0,0.000599,7]
[321233557,1712004646915,-500.0,0.000599,7]
[321233558,1712004646925,-500.0,0.000599,7]
[321233559,1712004646970,-500.0,0.000599,7]
[321233560,1712004646995,-500.0,0.000599,7]
[321233561,1712004647005,-500.0,0.000599,7]
[321233562,1712004647015,-500.0,0.000599,7]
[321233563,1712004647026,-500.0,0.000599,7]
[321233564,1712004647036,-500.0,0.000599,7]
[321233565,1712004647046,-381.86,0.000599,7]
[321233566,1712004647057,-500.0,0.000599,7]
[321233567,1712004647066,-500.0,0.000599,7]
[321233568,1712004647076,-500.0,0.000599,7]
[321233569,1712004647086,-500.0,0.000599,7]
[321233570,1712004647096,-500.0,0.000599,7]
[321233571,1712004647106,-500.0,0.000599,7]
[321233572,1712004647117,-500.0,0.000599,7]
[321233573,1712004647127,-500.0,0.000599,7]
[321233574,1712004647137,-500.0,0.000599,7]
[321233575,1712004647147,-500.0,0.000599,7]
[321233576,1712004647158,-500.0,0.000599,7]
[321233577,1712004647168,-500.0,0.000599,7]
[321233578,1712004647178,-500.0,0.000599,7]
[321233579,1712004647188,-500.0,0.000599,7]
[321233580,1712004647199,-500.0,0.000599,7]
[321233581,1712004647209,-500.0,0.000599,7]
[321233582,1712004647220,-500.0,0.000599,7]
[321233583,1712004647229,-500.0,0.000599,7]
[321233584,1712004647239,-500.0,0.000599,7]
[321233585,1712004647250,-500.0,0.000599,7]
[321233586,1712004647260,-500.0,0.000599,7]
[321233587,1712004647269,-500.0,0.000599,7]
[321233588,1712004647280,-500.0,0.000599,7]
[321233589,1712004647290,-422.09,0.000599,7]
[321233590,1712004647300,-1248.06285307,0.000599,120]
[321233591,1712004647312,-1248.06285307,0.000599,120]
[321233592,1712004647322,-1400.0,0.000599,21]
[321233593,1712004647332,-500.0,0.000599,10]
[321233594,1712004647342,-264.90152903,0.000599,14]
[321233595,1712004647352,-1000.0,0.000599,7]
[321233596,1712004647363,-168.69747162,0.000599,61]
[321233597,1712004647373,-453.39363343,0.00059924,120]
[321233598,1712004647386,-161.317624,0.00059931,30]
[321233599,1712004647397,-150.0,0.0005994,120]
[321233600,1712004647408,-150.0,0.0005994,120]
[321233601,1712004647419,-150.0,0.0005994,120]
[321233602,1712004647434,-160.22977354,0.0005994,120]
[321233603,1712004647450,-5800.0,0.00059983,18]
[321233604,1712004647460,-5800.0,0.00059991,18]
[321233605,1712004647471,-5896.0,0.00059999,120]
[321233606,1712004647484,-7900.54,0.00059999,120]
[321233607,1712004647495,-1088.97,0.00059999,120]
[321233608,1712004647506,-21137.28,0.00059999,120]
[321233609,1712004647516,-500.0,0.00059999,120]
[321233610,1712004647529,-100000.0,0.0006,60]
[321233611,1712004647539,-3674.74213021,0.0006,120]
[321233612,1712004647550,-51542.45,0.0006,60]
[321233613,1712004647562,-848.90887092,0.0006,30]
[321233614,1712004647573,-480.0,0.0006,50]
[321233615,1712004647584,-464.0,0.0006,40]
[321233616,1712004647595,-8905.49848806,0.0006,120]
[321233617,1712004647606,-518.06512933,0.0006,90]
[321233618,1712004647618,-1132.68418202,0.0006,120]
[321233619,1712004647629,-1495.19701797,0.0006,7]
[321233620,1712004647640,-1652.648893,0.0006,120]
[321233621,1712004647650,-3199.90089924,0.0006,90]
[321233622,1712004647661,-804.85,0.0006,30]
[321233623,1712004647672,-5800.0,0.0006,18]
[321233624,1712004647683,-3131628.79,0.0006,60]
[321233625,1712004647694,-500.0,0.0006,14]
[321233626,1712004647704,-499.99999901,0.0006,7]
[321233627,1712004647715,-500.0,0.00060024,90]
[321233628,1712004647725,-155.95513194,0.00060041,60]
[321233629,1712004647735,-151.0,0.0006007,86]
[321233630,1712004647745,-1208.0,0.00060075,30]
[321233631,1712004647756,-9362.85943,0.00060088,30]
[321233632,1712004647767,-1000.0,0.000601,7]
[321233633,1712004647778,-1000.0,0.000601,7]
[321233634,1712004647789,-7791.41103182,0.0006012,2]
[321233635,1712004647799,-3061.0,0.00060138,3]
[321233636,1712004647810,-14734.43131496,0.0006015,2]
[321233637,1712004647820,-159.2201023,0.00060155,120]
[321233638,1712004647830,-19657.66,0.0006016,2]
[321233639,1712004647840,-19657.66,0.0006017,2]
[321233640,1712004647850,-209.0,0.0006019,30]
[321233641,1712004647861,-435.56,0.00060193,2]
[321233642,1712004647872,-2882.09175725,0.000602,85]
[321233643,1712004647883,-892.0,0.000602,30]
[321233644,1712004647894,-151.70009463,0.00060211,120]
[321233645,1712004647904,-666.0,0.00060273,120]
[321233646,1712004647915,-5896.0,0.00060273,120]
[321233647,1712004647927,-7900.54,0.00060273,120]
[321233648,1712004647939,-1088.97,0.00060273,120]
[321233649,1712004647949,-21137.28,0.00060273,120]
[321233650,1712004647961,-500.0,0.00060273,120]
[321233651,1712004647971,-37164.23,0.00060274,30]
[321233652,1712004647982,-190.56,0.00060285,120]
[321233653,1712004647992,-9362.85943,0.00060288,30]
[321233654,1712004648002,-500.0,0.00060298,90]
[321233655,1712004648013,-500.70941903,0.000603,30]
[321233656,1712004648025,-335450.48872063,0.00060389,120]
[321233657,1712004648035,-150.11,0.00060476,2]
[321233658,1712004648045,-453.39363335,0.00060477,120]
[321233659,1712004648056,-9362.85943,0.00060488,30]
[321233660,1712004648066,-1005.0,0.000605,7]
[321233661,1712004648076,-152.93655063,0.00060511,120]
[321233662,1712004648086,-5896.0,0.00060547,120]
[321233663,1712004648096,-7900.54,0.00060547,120]
[321233664,1712004648106,-1088.97,0.00060547,120]
[321233665,1712004648116,-5000.0,0.00060547,120]
[321233666,1712004648126,-21137.28,0.00060547,120]
[321233667,1712004648136,-500.0,0.00060547,120]
[321233668,1712004648146,-155.0,0.00060555,7]
[321233669,1712004648156,-310.8781278,0.00060557,7]
[321233670,1712004648167,-500.0,0.00060572,90]
[321233671,1712004648333,-48950.0,0.00060581,120]
[321233672,1712004648343,-2423.0,0.0006064,120]
[321233673,1712004648354,-459.0,0.0006064,120]
[321233674,1712004648363,-1383.0,0.0006064,120]
[321233675,1712004648373,-963.0,0.0006064,120]
[321233676,1712004648385,-538.0,0.0006064,120]
[321233677,1712004648395,-218.011,0.0006064,2]
[321233678,1712004648404,-1226.0,0.0006064,120]
[321233679,1712004648414,-150.0,0.0006064,120]
[321233680,1712004648423,-279.0,0.0006064,120]
[321233681,1712004648433,-1269.0,0.0006064,120]
[321233682,1712004648442,-804.0,0.0006064,120]
[321233683,1712004648452,-605.0,0.0006064,120]
[321233684,1712004648461,-434.0,0.0006064,120]
[321233685,1712004648474,-2984.0,0.0006064,120]
[321233686,1712004648483,-150.0,0.0006064,120]
[321233687,1712004648492,-1458.862,0.0006064,120]
[321233688,1712004648502,-194.0,0.0006064,2]
[321233689,1712004648511,-397.0,0.0006064,120]
[321233690,1712004648521,-205.747,0.0006064,2]
[321233691,1712004648530,-333.253,0.0006064,120]
[321233692,1712004648539,-150.0,0.0006064,120]
[321233693,1712004648548,-245.0,0.0006064,2]
[321233694,1712004648558,-1629.0,0.0006064,120]
[321233695,1712004648567,-2428.0,0.0006064,120]
[321233696,1712004648576,-213.0,0.0006064,2]
[321233697,1712004648586,-264.0,0.0006064,2]
[321233698,1712004648596,-284.734,0.0006064,120]
[321233699,1712004648605,-228.663,0.0006064,2]
[321233700,1712004648614,-150.0,0.0006064,2]
[321233701,1712004648623,-5691.0,0.0006064,120]
[321233702,1712004648633,-2454.0,0.0006064,120]
[321233703,1712004648642,-1195.0,0.0006064,2]
[321233704,1712004648651,-1178.0,0.0006064,120]
[321233705,1712004648661,-43048.0,0.0006064,120]
[321233706,1712004648670,-150.757,0.0006064,120]
[321233707,1712004648679,-150.0,0.0006064,120]
[321233708,1712004648689,-1733.944,0.0006064,120]
[321233709,1712004648698,-1049.0,0.0006064,120]
[321233710,1712004648707,-200.0,0.0006064,2]
[321233711,1712004648717,-161.317624,0.00060671,30]
[321233712,1712004648726,-9362.85943,0.00060688,30]
[321233713,1712004648735,-446752.11342841,0.000607,2]
[321233714,1712004648839,-340516.33855994,0.000607,2]
[321233715,1712004648853,-479.51801392,0.000607,2]
[321233716,1712004648912,-1107.2408442,0.00056164,120]
[321233717,1712004648929,-5365.7391558,0.00056164,120]
[321233718,1712004648939,-95595.26234419,0.000607,2]
[321233719,1712004649019,-599.47,0.0004999,10]
[321233720,1712004649030,-2568.19239092,0.00056438,120]
[321233721,1712004649043,-393.58023447,0.00056438,120]
[321233722,1712004649099,-285.8850004,0.00056438,120]
[321233723,1712004649263,-31.22833805,0.000329,2]
[321233724,1712004649277,-285.8477484,0.000329,2]
[321233725,1712004649287,-379.99,0.00047163,2]
[321233726,1712004649298,-3225.32237421,0.00056438,120]
[321233727,1712004649308,-6472.98,0.00056712,120]
[321233728,1712004649318,-6472.98,0.00056986,120]
[321233729,1712004649328,-6472.98,0.0005726,120]
[321233730,1712004649338,-6472.98,0.00057534,120]
[321233731,1712004649349,-6472.98,0.00057808,120]
[321233732,1712004649359,-766.58111656,0.00057982,30]
[321233733,1712004649369,-6472.98,0.00058082,120]
[321233734,1712004649380,-6472.98,0.00058356,120]
[321233735,1712004649389,-6472.98,0.0005863,120]
[321233736,1712004649398,-6472.98,0.00058904,120]
[321233737,1712004649408,-6472.98,0.00059178,120]
[321233738,1712004649418,-6472.98,0.00059452,120]
[321233739,1712004649427,-6472.98,0.00059726,120]
[321233740,1712004649436,-200.0,0.00059799,120]
[321233741,1712004649446,-6472.98,0.00059999,120]
[321233742,1712004649456,-6472.98,0.00060273,120]
[321233743,1712004649466,-6472.98,0.00060547,120]
[321233744,1712004649475,-321974.17436018,0.000607,2]
[321233745,1712004649485,-983.70680518,0.000607,120]
[321233746,1712004649494,-9025.69162966,0.000607,120]
[321233747,1712004649504,-152.0,0.00060769,3]
[321233748,1712004649514,-6889.44747737,0.000608,120]
[321233749,1712004649524,-400.8,0.000608,14]
[321233750,1712004649533,-684.37,0.000608,30]
[321233751,1712004649543,-5896.0,0.00060821,120]
[321233752,1712004649553,-7900.54,0.00060821,120]
[321233753,1712004649562,-1088.97,0.00060821,120]
[321233754,1712004649573,-21137.28,0.00060821,120]
[321233755,1712004649584,-247.8949266,0.00060821,120]
[321233756,1712004649595,-6472.98,0.00060821,120]
[321233757,1712004649606,-1056.04,0.00060849,30]
[321233758,1712004649616,-414.95,0.00060849,30]
[321233759,1712004649627,-360.87,0.00060849,30]
[321233760,1712004649637,-152.09,0.00060849,30]
[321233761,1712004649646,-910.36,0.00060849,30]
[321233762,1712004649657,-27070.10563861,0.00060879,7]
[321233763,1712004649667,-1000.0,0.00060899,120]
[321233764,1712004649677,-156.58100851,0.00060899,120]
[321233765,1712004649687,-5000.0,0.000609,120]
[321233766,1712004649697,-150.0,0.000609,120]
[321233767,1712004649706,-804.85,0.000609,30]
[321233768,1712004649716,-1000.0,0.000609,7]
[321233769,1712004649727,-1521.29171865,0.000609,2]